Department Family,Entity,Payment Date,Expense Type,Expense Area,Supplier,Transaction Number,Amount,Invoice Description,Postal Code,"Programme, Admin or Capital Expenditure"
Food Standards Agency,Food Standards Agency,02/07/2012,IT Software Licences,IT Strategy & Development,Capita Secure Information Solutions Ltd,POI017671,"50,178.00",PO 407787 SUPPLY & IMPLEMENT SOFTWARE LICENSE MONITORING SERVICE,SN14 0TW,Admin
Food Standards Agency,Food Standards Agency,02/07/2012,IT Software Licences,IT Strategy & Development,Capita Secure Information Solutions Ltd,POI017671,"10,035.60",PO 407787 SUPPLY & IMPLEMENT SOFTWARE LICENSE MONITORING SERVICE,SN14 0TW,Admin
Food Standards Agency,Food Standards Agency,02/07/2012,Project Programme expenditure,Delivery,London Borough Of Havering,9140060642,"37,737.50",PO 407843 50% ADVANCE FUNDING,RM1 3AR,Programme
Food Standards Agency,Food Standards Agency,02/07/2012,Programme Evidence & Research Expenditure,Delivery,Staffordshire County Council,8001041194,"32,986.80",PO 408431 NATIONAL CO-ORDIANATED RISK BASED FODD & FEED SAMPLING PROGRAMME 2012/13,ST16 2NF,Programme
Food Standards Agency,Food Standards Agency,02/07/2012,Programme Evidence & Research Expenditure,Chemical Risk Assessment Unit,University Of Hull,SOIN47322,"27,300.00",PO 400559 D11-LAB ANALYSIS COMPLETE,HU6 7RX,Programme
Food Standards Agency,Food Standards Agency,02/07/2012,Programme Evidence & Research Expenditure,Microbiological Food Safety Branch,University Of Liverpool,21216307R,"93,350.00","PO 403768 FS241040 CLAIM FOR DELIVERABLES 3, 4 & 5",L69 7ZX,Programme
Food Standards Agency,Food Standards Agency,02/07/2012,Programme Evidence & Research Expenditure,Food Production Branch,Food & Environment Research Agency,F0022928,"108,607.51",PO 400456 FINAL RETENTION INVOICE M01052/FS231058,YO41 1LZ,Programme
Food Standards Agency,Food Standards Agency,02/07/2012,Programme Evidence & Research Expenditure,Food Production Branch,bbsrc.,13339,"175,000.00",PO 406059 3RD CLAIM BB/I024674/IO2485/I024623/I024550/BBI02464X,SN2 1FF,Programme
Food Standards Agency,Food Standards Agency,04/07/2012,IT Development projects,FSA Board,The Glasgows Group,14273,"25,632.40",PO 407697 FSA PUBLIC OPEN BOARD MEETING 19/6/12,PR2 2UW,Admin
Food Standards Agency,Food Standards Agency,04/07/2012,IT Development projects,FSA Board,The Glasgows Group,14273,"5,126.48",PO 407697 FSA PUBLIC OPEN BOARD MEETING 19/6/12,PR2 2UW,Admin
Food Standards Agency,Food Standards Agency,04/07/2012,Project Programme expenditure,Analysis & Research Branch,LGC Ltd,50143653,"40,510.00",PO 408823 FSAGMRICE COLLABORATIVE TRIAL 166 FSA.CT166,TW11 0LY,Programme
Food Standards Agency,Food Standards Agency,04/07/2012,Project Programme expenditure,Analysis & Research Branch,LGC Ltd,50143653,"35,000.00",PO 408823 FSAGMRICE COLLABORATIVE TRIAL 166 FSA.CT166,TW11 0LY,Programme
Food Standards Agency,Food Standards Agency,04/07/2012,Project Programme expenditure,Analysis & Research Branch,Mintel International Group Ltd,M15243,"22,500.00",PO 407893 SUBSCRIPTION LICENSED FROM 1/7/12 TO 30/6/13,EC4V 6RN,Programme
Food Standards Agency,Food Standards Agency,04/07/2012,Project Programme expenditure,Analysis & Research Branch,Mintel International Group Ltd,M15243,"4,500.00",PO 407893 SUBSCRIPTION LICENSED FROM 1/7/12 TO 30/6/13,EC4V 6RN,Programme
Food Standards Agency,Food Standards Agency,04/07/2012,Project Programme expenditure,Delivery,NSF-CMI Ltd,5024254,"50,234.40",PO 408190 BALANCING CHARGE FOR 457 COACHING VISITS,OX29 8SJ,Programme
Food Standards Agency,Food Standards Agency,04/07/2012,Project Programme expenditure,Enforcement Policy,Amicus Its Ltd,OPI042903,"41,098.19",PO 408466 SEPARATION: HOSTING FOOD HYGIENE RATING FROM AMICUS IT,SO40 3WX,Programme
Food Standards Agency,Food Standards Agency,04/07/2012,Project Programme expenditure,Enforcement Policy,Microsoft Corporation,15032054,"32,500.00",PO 408286 FOREIGN PAYMENT 64V-00019 6/8/12 TO 6/7/13,TX 75284-9008,Programme
Food Standards Agency,Food Standards Agency,06/07/2012,Laundry,Central Operations Hub,Apparelmaster UK Ltd,3826,"24,027.75",PO 407992 SALE OF LOCKERS ETC,PR2 9ZD,Programme
Food Standards Agency,Food Standards Agency,06/07/2012,Laundry,Central Operations Hub,Apparelmaster UK Ltd,3826,"4,805.55",PO 407992 SALE OF LOCKERS ETC,PR2 9ZD,Programme
Food Standards Agency,Food Standards Agency,06/07/2012,Laundry,Central Operations Hub,Apparelmaster UK Ltd,42707,"23,910.11",PO 407992 CHARGES FOR PERIOD 1/4/12 TO 28/4/12,PR2 9ZD,Programme
Food Standards Agency,Food Standards Agency,06/07/2012,Laundry,Central Operations Hub,Apparelmaster UK Ltd,42707,"4,782.02",PO 407992 CHARGES FOR PERIOD 1/4/12 TO 28/4/12,PR2 9ZD,Programme
Food Standards Agency,Food Standards Agency,06/07/2012,Laundry,Central Operations Hub,Apparelmaster UK Ltd,42707,0.01,PO 407992 CHARGES FOR PERIOD 1/4/12 TO 28/4/12,PR2 9ZD,Programme
Food Standards Agency,Food Standards Agency,06/07/2012,Laundry,Central Operations Hub,Apparelmaster UK Ltd,43117,"22,138.76",PO 407992 CONSOLIDATED INVOICE 29/4/12 TO 26/5/12,PR2 9ZD,Programme
Food Standards Agency,Food Standards Agency,06/07/2012,Laundry,Central Operations Hub,Apparelmaster UK Ltd,43117,"4,427.75",PO 407992 CONSOLIDATED INVOICE 29/4/12 TO 26/5/12,PR2 9ZD,Programme
Food Standards Agency,Food Standards Agency,06/07/2012,Laundry,Central Operations Hub,Apparelmaster UK Ltd,43117,30.03,PO 407992 CONSOLIDATED INVOICE 29/4/12 TO 26/5/12,PR2 9ZD,Programme
Food Standards Agency,Food Standards Agency,06/07/2012,Laundry,Central Operations Hub,Apparelmaster UK Ltd,43117,6.01,PO 407992 CONSOLIDATED INVOICE 29/4/12 TO 26/5/12,PR2 9ZD,Programme
Food Standards Agency,Food Standards Agency,06/07/2012,Laundry,Central Operations Hub,Apparelmaster UK Ltd,43117,-0.02,PO 407992 CONSOLIDATED INVOICE 29/4/12 TO 26/5/12,PR2 9ZD,Programme
Food Standards Agency,Food Standards Agency,06/07/2012,Mobile phone charges,IT Service Delivery,Vodafone Ltd,63423250,"36,895.19",PO 408824 CALL CHARGES TO 21/5/12,RG14 5FF,Admin
Food Standards Agency,Food Standards Agency,06/07/2012,Mobile phone charges,IT Service Delivery,Vodafone Ltd,63423250,"7,379.04",PO 408824 CALL CHARGES TO 21/5/12,RG14 5FF,Admin
Food Standards Agency,Food Standards Agency,06/07/2012,Mobile phone charges,IT Service Delivery,Vodafone Ltd,63423250,408.93,PO 408824 CALL CHARGES TO 21/5/12,RG14 5FF,Admin
Food Standards Agency,Food Standards Agency,06/07/2012,Mobile phone charges,IT Service Delivery,Vodafone Ltd,63423250,10.50,PO 408824 CALL CHARGES TO 21/5/12,RG14 5FF,Admin
Food Standards Agency,Food Standards Agency,06/07/2012,Mobile phone charges,IT Service Delivery,Vodafone Ltd,63423250,-0.01,PO 408824 CALL CHARGES TO 21/5/12,RG14 5FF,Admin
Food Standards Agency,Food Standards Agency,06/07/2012,IT equipment maintenance,IT Service Delivery,Capita Secure Information Solutions Ltd,POI018215,"263,675.00",PO 408825 MAY 20123 SERVICE PROVISION LOT1/2/3/4/5/6 MONTHLY CHGS,SN14 0TW,Admin
Food Standards Agency,Food Standards Agency,06/07/2012,Project Programme expenditure,Comms Directors Office,T N S Uk Ltd,260109127,"48,829.00",PO 408748 CITIZENS FORUM 2011 AND 2012,W5 1UA,Programme
Food Standards Agency,Food Standards Agency,06/07/2012,Project Programme expenditure,Comms Directors Office,T N S Uk Ltd,260109127,"9,765.80",PO 408748 CITIZENS FORUM 2011 AND 2012,W5 1UA,Programme
Food Standards Agency,Food Standards Agency,06/07/2012,Project Programme expenditure,Delivery,Chartered Institute Of Environ Health,INV408121,"114,221.00",PO 408201 OLYMPIC GRANT FUND SCHEME 50%,SE1 8DJ,Programme
Food Standards Agency,Food Standards Agency,10/07/2012,Civil service pension administration,Finance Director & Branch,London Pensions Fund Authority,1JUL2012,"138,333.33",PO 408024 RGFS ACCOUNT 595,EC3N 4LP,Admin
Food Standards Agency,Food Standards Agency,10/07/2012,Service charges,Security & Estates,G4s Integrated Services (Uk) Ltd,M7842,"26,929.85",PO 407801 SERVICE PROVISION ON CONTRACT REF PAU229 FOR JUNE 2012,S81 7QF,Admin
Food Standards Agency,Food Standards Agency,10/07/2012,Service charges,Security & Estates,G4s Integrated Services (Uk) Ltd,M7842,"15,613.20",PO 407801 SERVICE PROVISION ON CONTRACT REF PAU229 FOR JUNE 2012,S81 7QF,Admin
Food Standards Agency,Food Standards Agency,10/07/2012,Service charges,Security & Estates,G4s Integrated Services (Uk) Ltd,M7842,"2,842.41",PO 407801 SERVICE PROVISION ON CONTRACT REF PAU229 FOR JUNE 2012,S81 7QF,Admin
Food Standards Agency,Food Standards Agency,10/07/2012,IT Software Licences,IT Service Delivery,Trustmarque Solutions Ltd,2173551,"189,257.54",PO 408826 ASSORTED MICROSOFT LICENCES FROM 1/7/12 TO 30/6/12,YO32 9GZ,Admin
Food Standards Agency,Food Standards Agency,10/07/2012,IT Software Licences,IT Service Delivery,Trustmarque Solutions Ltd,2173551,"37,851.51",PO 408826 ASSORTED MICROSOFT LICENCES FROM 1/7/12 TO 30/6/12,YO32 9GZ,Admin
Food Standards Agency,Food Standards Agency,10/07/2012,Office machinery: hire,Security & Estates,G4s Integrated Services (Uk) Ltd,M7842,"3,244.00",PO 407801 SERVICE PROVISION ON CONTRACT REF PAU229 FOR JUNE 2012,S81 7QF,Admin
Food Standards Agency,Food Standards Agency,10/07/2012,Security,Security & Estates,G4s Integrated Services (Uk) Ltd,M7842,"18,167.70",PO 407801 SERVICE PROVISION ON CONTRACT REF PAU229 FOR JUNE 2012,S81 7QF,Admin
Food Standards Agency,Food Standards Agency,10/07/2012,Project Programme expenditure,Chief Scientist,DEFRA,1000016905,"50,000.00",PO 406986 MISC RECHARGES,YO1 7PX,Programme
Food Standards Agency,Food Standards Agency,12/07/2012,Project Programme expenditure,Analysis & Research Branch,Wakefield Council,91306849871,"67,200.00",PO 408829 FSA COLLABORATIVE TRIAL PROGRAMME,WF1 9AJ,Programme
Food Standards Agency,Food Standards Agency,12/07/2012,Project Programme expenditure,Analysis & Research Branch,Wakefield Council,91306849871,"12,700.00",PO 408829 FSA COLLABORATIVE TRIAL PROGRAMME,WF1 9AJ,Programme
Food Standards Agency,Food Standards Agency,12/07/2012,Project Programme expenditure,EU Regulatory Reform Branch,Scottish Agricultural College,20423392,"25,000.00",PO 406619 TRIAL OF VISUAL INSPECTION FOR FATTEING PAIGS FROM NON- CONTROL HOUSEING CONDITIONS,EH9 3JG,Programme
Food Standards Agency,Food Standards Agency,12/07/2012,Programme Evidence & Research Expenditure,Microbiological Food Safety Branch,University Of Liverpool,21218795R,"40,000.00",PO 403768 SURVIVAL OF COMPLOBACTER JEJUNI + C.COLI DELIVERABLE2,L69 7ZX,Programme
Food Standards Agency,Food Standards Agency,16/07/2012,Project Programme expenditure,Comms Directors Office,L B I Ltd,301422589,"235,000.00",PO 408172 SITE REDESIGN PRODUCTION,E1 6RU,Programme
Food Standards Agency,Food Standards Agency,16/07/2012,Project Programme expenditure,Comms Directors Office,L B I Ltd,301422589,"47,000.00",PO 408172 SITE REDESIGN PRODUCTION,E1 6RU,Programme
Food Standards Agency,Food Standards Agency,16/07/2012,Project Programme expenditure,Chemical Risk Assessment Unit,Department Of Health,207574,"500,000.00",PO 404300 NATIONAL DIET AND NUTRITION SURVEY FUNDING 2012/13,LS2 7UE,Programme
Food Standards Agency,Food Standards Agency,16/07/2012,Travel UK ,Area 1 Scotland - Cluster 11,Capita Business Travel Ltd,LI426388,124.90,CONSOLIDATED INVOICE 16 -30 JUN 12 TRAVEL CHARGES,DE21 6BF,Programme
Food Standards Agency,Food Standards Agency,16/07/2012,Travel UK ,Area 1 Scotland - Cluster 12,Capita Business Travel Ltd,LI426388,219.20,CONSOLIDATED INVOICE 16 -30 JUN 12 TRAVEL CHARGES,DE21 6BF,Programme
Food Standards Agency,Food Standards Agency,16/07/2012,Travel UK ,Area 1 Scotland - Cluster 13,Capita Business Travel Ltd,LI426388,198.30,CONSOLIDATED INVOICE 16 -30 JUN 12 TRAVEL CHARGES,DE21 6BF,Programme
Food Standards Agency,Food Standards Agency,16/07/2012,Travel UK ,Area 2 Wales - Cluster 21,Capita Business Travel Ltd,LI426388,137.40,CONSOLIDATED INVOICE 16 -30 JUN 12 TRAVEL CHARGES,DE21 6BF,Programme
Food Standards Agency,Food Standards Agency,16/07/2012,Travel UK ,Area 2 Wales - Cluster 22,Capita Business Travel Ltd,LI426388,110.60,CONSOLIDATED INVOICE 16 -30 JUN 12 TRAVEL CHARGES,DE21 6BF,Programme
Food Standards Agency,Food Standards Agency,16/07/2012,Travel UK ,Area 3 North West England - Cluster 31,Capita Business Travel Ltd,LI426388,114.00,CONSOLIDATED INVOICE 16 -30 JUN 12 TRAVEL CHARGES,DE21 6BF,Programme
Food Standards Agency,Food Standards Agency,16/07/2012,Travel UK ,Area 3 North West England - Cluster 34,Capita Business Travel Ltd,LI426388,73.20,CONSOLIDATED INVOICE 16 -30 JUN 12 TRAVEL CHARGES,DE21 6BF,Programme
Food Standards Agency,Food Standards Agency,16/07/2012,Travel UK ,Area 3 North West England - Cluster 36,Capita Business Travel Ltd,LI426388,97.90,CONSOLIDATED INVOICE 16 -30 JUN 12 TRAVEL CHARGES,DE21 6BF,Programme
Food Standards Agency,Food Standards Agency,16/07/2012,Travel UK ,Area 4 North East England - Cluster 45,Capita Business Travel Ltd,LI426388,142.90,CONSOLIDATED INVOICE 16 -30 JUN 12 TRAVEL CHARGES,DE21 6BF,Programme
Food Standards Agency,Food Standards Agency,16/07/2012,Travel UK ,Area 4 North East England - Cluster 46,Capita Business Travel Ltd,LI426388,33.80,CONSOLIDATED INVOICE 16 -30 JUN 12 TRAVEL CHARGES,DE21 6BF,Programme
Food Standards Agency,Food Standards Agency,16/07/2012,Travel UK ,Area 4 North East England - Cluster 48,Capita Business Travel Ltd,LI426388,115.60,CONSOLIDATED INVOICE 16 -30 JUN 12 TRAVEL CHARGES,DE21 6BF,Programme
Food Standards Agency,Food Standards Agency,16/07/2012,Travel UK ,Area 5 South West England - Cluster 54,Capita Business Travel Ltd,LI426388,296.10,CONSOLIDATED INVOICE 16 -30 JUN 12 TRAVEL CHARGES,DE21 6BF,Programme
Food Standards Agency,Food Standards Agency,16/07/2012,Travel UK ,Area 5 South West England - Cluster 57,Capita Business Travel Ltd,LI426388,476.40,CONSOLIDATED INVOICE 16 -30 JUN 12 TRAVEL CHARGES,DE21 6BF,Programme
Food Standards Agency,Food Standards Agency,16/07/2012,Travel UK ,Area 6 South East England - Cluster 61,Capita Business Travel Ltd,LI426388,192.30,CONSOLIDATED INVOICE 16 -30 JUN 12 TRAVEL CHARGES,DE21 6BF,Programme
Food Standards Agency,Food Standards Agency,16/07/2012,Travel UK ,Area 6 South East England - Cluster 62,Capita Business Travel Ltd,LI426388,109.50,CONSOLIDATED INVOICE 16 -30 JUN 12 TRAVEL CHARGES,DE21 6BF,Programme
Food Standards Agency,Food Standards Agency,16/07/2012,Travel UK ,Area 6 South East England - Cluster 63,Capita Business Travel Ltd,LI426388,244.40,CONSOLIDATED INVOICE 16 -30 JUN 12 TRAVEL CHARGES,DE21 6BF,Programme
Food Standards Agency,Food Standards Agency,16/07/2012,Travel UK ,Area 6 South East England - Cluster 65,Capita Business Travel Ltd,LI426388,110.70,CONSOLIDATED INVOICE 16 -30 JUN 12 TRAVEL CHARGES,DE21 6BF,Programme
Food Standards Agency,Food Standards Agency,16/07/2012,Travel UK ,Area 6 South East England - Cluster 66,Capita Business Travel Ltd,LI426388,39.70,CONSOLIDATED INVOICE 16 -30 JUN 12 TRAVEL CHARGES,DE21 6BF,Programme
Food Standards Agency,Food Standards Agency,16/07/2012,Travel UK ,Chief Executive & Private Office,Capita Business Travel Ltd,LI426388,"2,311.88",CONSOLIDATED INVOICE 16 -30 JUN 12 TRAVEL CHARGES,DE21 6BF,Admin
Food Standards Agency,Food Standards Agency,16/07/2012,Travel UK ,Chair & Deputy Chair,Capita Business Travel Ltd,LI426388,"1,032.59",CONSOLIDATED INVOICE 16 -30 JUN 12 TRAVEL CHARGES,DE21 6BF,Admin
Food Standards Agency,Food Standards Agency,16/07/2012,Travel UK ,FSA Board,Capita Business Travel Ltd,LI426388,"1,455.22",CONSOLIDATED INVOICE 16 -30 JUN 12 TRAVEL CHARGES,DE21 6BF,Admin
Food Standards Agency,Food Standards Agency,16/07/2012,Travel UK ,Legal Branch A,Capita Business Travel Ltd,LI426388,186.54,CONSOLIDATED INVOICE 16 -30 JUN 12 TRAVEL CHARGES,DE21 6BF,Admin
Food Standards Agency,Food Standards Agency,16/07/2012,Travel UK ,Investigations,Capita Business Travel Ltd,LI426388,373.30,CONSOLIDATED INVOICE 16 -30 JUN 12 TRAVEL CHARGES,DE21 6BF,Admin
Food Standards Agency,Food Standards Agency,16/07/2012,Travel UK ,Chief Scientist,Capita Business Travel Ltd,LI426388,382.84,CONSOLIDATED INVOICE 16 -30 JUN 12 TRAVEL CHARGES,DE21 6BF,Admin
Food Standards Agency,Food Standards Agency,16/07/2012,Travel UK ,Comms Directors Office,Capita Business Travel Ltd,LI426388,"1,516.06",CONSOLIDATED INVOICE 16 -30 JUN 12 TRAVEL CHARGES,DE21 6BF,Admin
Food Standards Agency,Food Standards Agency,16/07/2012,Travel UK ,FSA Operations Director & Support,Capita Business Travel Ltd,LI426388,905.19,CONSOLIDATED INVOICE 16 -30 JUN 12 TRAVEL CHARGES,DE21 6BF,Programme
Food Standards Agency,Food Standards Agency,16/07/2012,Travel UK ,Approvals & Veterinary Advice,Capita Business Travel Ltd,LI426388,"1,203.80",CONSOLIDATED INVOICE 16 -30 JUN 12 TRAVEL CHARGES,DE21 6BF,Programme
Food Standards Agency,Food Standards Agency,16/07/2012,Travel UK ,LAALD HoD & Support,Capita Business Travel Ltd,LI426388,"2,945.60",CONSOLIDATED INVOICE 16 -30 JUN 12 TRAVEL CHARGES,DE21 6BF,Admin
Food Standards Agency,Food Standards Agency,16/07/2012,Travel UK ,Delivery,Capita Business Travel Ltd,LI426388,"2,303.00",CONSOLIDATED INVOICE 16 -30 JUN 12 TRAVEL CHARGES,DE21 6BF,Admin
Food Standards Agency,Food Standards Agency,16/07/2012,Travel UK ,Operational Delivery,Capita Business Travel Ltd,LI426388,"1,514.20",CONSOLIDATED INVOICE 16 -30 JUN 12 TRAVEL CHARGES,DE21 6BF,Programme
Food Standards Agency,Food Standards Agency,16/07/2012,Travel UK ,Wine Standards,Capita Business Travel Ltd,LI426388,356.90,CONSOLIDATED INVOICE 16 -30 JUN 12 TRAVEL CHARGES,DE21 6BF,Programme
Food Standards Agency,Food Standards Agency,16/07/2012,Travel UK ,Central Operations Hub,Capita Business Travel Ltd,LI426388,416.70,CONSOLIDATED INVOICE 16 -30 JUN 12 TRAVEL CHARGES,DE21 6BF,Programme
Food Standards Agency,Food Standards Agency,16/07/2012,Travel UK ,Chemical Risk Assessment Unit,Capita Business Travel Ltd,LI426388,363.70,CONSOLIDATED INVOICE 16 -30 JUN 12 TRAVEL CHARGES,DE21 6BF,Admin
Food Standards Agency,Food Standards Agency,16/07/2012,Travel UK ,Contaminants Policy & Strategy Unit,Capita Business Travel Ltd,LI426388,140.90,CONSOLIDATED INVOICE 16 -30 JUN 12 TRAVEL CHARGES,DE21 6BF,Admin
Food Standards Agency,Food Standards Agency,16/07/2012,Travel UK ,Hygiene & Microbiology Division HoD,Capita Business Travel Ltd,LI426388,174.05,CONSOLIDATED INVOICE 16 -30 JUN 12 TRAVEL CHARGES,DE21 6BF,Admin
Food Standards Agency,Food Standards Agency,16/07/2012,Travel UK ,EU Regulatory Reform Branch,Capita Business Travel Ltd,LI426388,33.40,CONSOLIDATED INVOICE 16 -30 JUN 12 TRAVEL CHARGES,DE21 6BF,Admin
Food Standards Agency,Food Standards Agency,16/07/2012,Travel UK ,Animal Feed Branch,Capita Business Travel Ltd,LI426388,-22.98,CONSOLIDATED INVOICE 16 -30 JUN 12 TRAVEL CHARGES,DE21 6BF,Admin
Food Standards Agency,Food Standards Agency,16/07/2012,Travel UK ,Food Policy Strategy HoD,Capita Business Travel Ltd,LI426388,"2,783.96",CONSOLIDATED INVOICE 16 -30 JUN 12 TRAVEL CHARGES,DE21 6BF,Admin
Food Standards Agency,Food Standards Agency,16/07/2012,Travel UK ,Planning and Performance,Capita Business Travel Ltd,LI426388,"1,424.90",CONSOLIDATED INVOICE 16 -30 JUN 12 TRAVEL CHARGES,DE21 6BF,Admin
Food Standards Agency,Food Standards Agency,16/07/2012,Travel UK ,Better Regulations & Sustainable Development,Capita Business Travel Ltd,LI426388,61.80,CONSOLIDATED INVOICE 16 -30 JUN 12 TRAVEL CHARGES,DE21 6BF,Admin
Food Standards Agency,Food Standards Agency,16/07/2012,Travel UK ,Food Policy Private Office,Capita Business Travel Ltd,LI426388,274.94,CONSOLIDATED INVOICE 16 -30 JUN 12 TRAVEL CHARGES,DE21 6BF,Admin
Food Standards Agency,Food Standards Agency,16/07/2012,Travel UK ,Finance Director & Branch,Capita Business Travel Ltd,LI426388,"1,896.30",CONSOLIDATED INVOICE 16 -30 JUN 12 TRAVEL CHARGES,DE21 6BF,Admin
Food Standards Agency,Food Standards Agency,16/07/2012,Travel UK ,HR,Capita Business Travel Ltd,LI426388,"1,623.90",CONSOLIDATED INVOICE 16 -30 JUN 12 TRAVEL CHARGES,DE21 6BF,Admin
Food Standards Agency,Food Standards Agency,16/07/2012,Travel UK ,Procurement,Capita Business Travel Ltd,LI426388,294.10,CONSOLIDATED INVOICE 16 -30 JUN 12 TRAVEL CHARGES,DE21 6BF,Admin
Food Standards Agency,Food Standards Agency,16/07/2012,Travel UK ,IT HoD,Capita Business Travel Ltd,LI426388,"1,077.60",CONSOLIDATED INVOICE 16 -30 JUN 12 TRAVEL CHARGES,DE21 6BF,Admin
Food Standards Agency,Food Standards Agency,16/07/2012,Travel UK ,Security & Estates,Capita Business Travel Ltd,LI426388,137.80,CONSOLIDATED INVOICE 16 -30 JUN 12 TRAVEL CHARGES,DE21 6BF,Admin
Food Standards Agency,Food Standards Agency,16/07/2012,Travel UK ,IT Information & Knowledge Management,Capita Business Travel Ltd,LI426388,73.80,CONSOLIDATED INVOICE 16 -30 JUN 12 TRAVEL CHARGES,DE21 6BF,Admin
Food Standards Agency,Food Standards Agency,16/07/2012,Travel UK ,Internal Audit,Capita Business Travel Ltd,LI426388,113.10,CONSOLIDATED INVOICE 16 -30 JUN 12 TRAVEL CHARGES,DE21 6BF,Admin
Food Standards Agency,Food Standards Agency,16/07/2012,International Travel,FSA Operations Director & Support,Capita Business Travel Ltd,LI426388,515.98,CONSOLIDATED INVOICE 16 -30 JUN 12 TRAVEL CHARGES,DE21 6BF,Programme
Food Standards Agency,Food Standards Agency,16/07/2012,International Travel,Official Controls & Enforcement Strategy,Capita Business Travel Ltd,LI426388,193.75,CONSOLIDATED INVOICE 16 -30 JUN 12 TRAVEL CHARGES,DE21 6BF,Admin
Food Standards Agency,Food Standards Agency,16/07/2012,International Travel,Hygiene & Microbiology Division HoD,Capita Business Travel Ltd,LI426388,108.80,CONSOLIDATED INVOICE 16 -30 JUN 12 TRAVEL CHARGES,DE21 6BF,Admin
Food Standards Agency,Food Standards Agency,16/07/2012,International Travel,Food Hygiene Policy Branch,Capita Business Travel Ltd,LI426388,304.50,CONSOLIDATED INVOICE 16 -30 JUN 12 TRAVEL CHARGES,DE21 6BF,Admin
Food Standards Agency,Food Standards Agency,16/07/2012,International Travel,Animal Feed Branch,Capita Business Travel Ltd,LI426388,491.25,CONSOLIDATED INVOICE 16 -30 JUN 12 TRAVEL CHARGES,DE21 6BF,Admin
Food Standards Agency,Food Standards Agency,16/07/2012,Subsistence UK,Procurement,Capita Business Travel Ltd,LI426388,"5,915.95",CONSOLIDATED INVOICE 16 -30 JUN 12 TRAVEL CHARGES,DE21 6BF,Admin
Food Standards Agency,Food Standards Agency,16/07/2012,Postal charges,Chemical Risk Assessment Unit,Capita Business Travel Ltd,LI426388,7.00,CONSOLIDATED INVOICE 16 -30 JUN 12 TRAVEL CHARGES,DE21 6BF,Admin
Food Standards Agency,Food Standards Agency,16/07/2012,Car hire expenses (short term),Area 2 Wales - Cluster 21,Capita Business Travel Ltd,LI426388,506.81,CONSOLIDATED INVOICE 16 -30 JUN 12 TRAVEL CHARGES,DE21 6BF,Programme
Food Standards Agency,Food Standards Agency,16/07/2012,Car hire expenses (short term),Comms Directors Office,Capita Business Travel Ltd,LI426388,206.96,CONSOLIDATED INVOICE 16 -30 JUN 12 TRAVEL CHARGES,DE21 6BF,Admin
Food Standards Agency,Food Standards Agency,16/07/2012,Car hire expenses (short term),Approvals & Veterinary Advice,Capita Business Travel Ltd,LI426388,267.82,CONSOLIDATED INVOICE 16 -30 JUN 12 TRAVEL CHARGES,DE21 6BF,Programme
Food Standards Agency,Food Standards Agency,16/07/2012,Car hire expenses (short term),LAALD HoD & Support,Capita Business Travel Ltd,LI426388,114.18,CONSOLIDATED INVOICE 16 -30 JUN 12 TRAVEL CHARGES,DE21 6BF,Admin
Food Standards Agency,Food Standards Agency,16/07/2012,Car hire expenses (short term),Operational Delivery,Capita Business Travel Ltd,LI426388,375.23,CONSOLIDATED INVOICE 16 -30 JUN 12 TRAVEL CHARGES,DE21 6BF,Programme
Food Standards Agency,Food Standards Agency,16/07/2012,Car hire expenses (short term),Food Policy Strategy HoD,Capita Business Travel Ltd,LI426388,109.15,CONSOLIDATED INVOICE 16 -30 JUN 12 TRAVEL CHARGES,DE21 6BF,Admin
Food Standards Agency,Food Standards Agency,16/07/2012,Car hire expenses (short term),HR,Capita Business Travel Ltd,LI426388,63.79,CONSOLIDATED INVOICE 16 -30 JUN 12 TRAVEL CHARGES,DE21 6BF,Admin
Food Standards Agency,Food Standards Agency,16/07/2012,Car hire expenses (short term),Internal Audit,Capita Business Travel Ltd,LI426388,113.83,CONSOLIDATED INVOICE 16 -30 JUN 12 TRAVEL CHARGES,DE21 6BF,Admin
Food Standards Agency,Food Standards Agency,18/07/2012,Utilities,Security & Estates,E D F Energy,145,"25,987.43",PO 407776 CONTRACT MANAGMENT FEE FLEX CHARGE ADJMT,EX1 3UT,Admin
Food Standards Agency,Food Standards Agency,18/07/2012,Utilities,Security & Estates,E D F Energy,145,"5,197.49",PO 407776 CONTRACT MANAGMENT FEE FLEX CHARGE ADJMT,EX1 3UT,Admin
Food Standards Agency,Food Standards Agency,18/07/2012,Telecomms-data networks & call charges,IT Service Delivery,Capita Secure Information Solutions Ltd,POI017673,"14,644.64",PO 407868 SET UP FEES FOR BROADBAND USERS/YEAR 1 CHGS FOR BROADBAND SERVICE,SN14 0TW,Admin
Food Standards Agency,Food Standards Agency,18/07/2012,Telecomms-data networks & call charges,IT Service Delivery,Capita Secure Information Solutions Ltd,POI017673,"8,470.56",PO 407868 SET UP FEES FOR BROADBAND USERS/YEAR 1 CHGS FOR BROADBAND SERVICE,SN14 0TW,Admin
Food Standards Agency,Food Standards Agency,18/07/2012,IT equipment maintenance,IT Strategy & Development,Capita Secure Information Solutions Ltd,POI018355,"50,000.00",PO 407927 DESK TOP & VDI - DETAILED VDI DESIGN DOCUMENT,SN14 0TW,Admin
Food Standards Agency,Food Standards Agency,18/07/2012,IT equipment maintenance,IT Strategy & Development,Capita Secure Information Solutions Ltd,POI018355,"10,000.00",PO 407927 DESK TOP & VDI - DETAILED VDI DESIGN DOCUMENT,SN14 0TW,Admin
Food Standards Agency,Food Standards Agency,18/07/2012,Subsistence UK,Area 2 Wales - Cluster 21,Booking Services International Ltd,224464321,65.00,"CONSOLIDATED INVOICE - HOTELS, CONFERENCE & MEETINGS - 160612 to 300612",TA1 2PF,Programme
Food Standards Agency,Food Standards Agency,18/07/2012,Subsistence UK,Area 3 North West England - Cluster 32,Booking Services International Ltd,224464321,140.00,"CONSOLIDATED INVOICE - HOTELS, CONFERENCE & MEETINGS - 160612 to 300612",TA1 2PF,Programme
Food Standards Agency,Food Standards Agency,18/07/2012,Subsistence UK,Area 4 North East England - Cluster 46,Booking Services International Ltd,224464321,60.00,"CONSOLIDATED INVOICE - HOTELS, CONFERENCE & MEETINGS - 160612 to 300612",TA1 2PF,Programme
Food Standards Agency,Food Standards Agency,18/07/2012,Subsistence UK,Area 5 South West England - Cluster 51,Booking Services International Ltd,224464321,104.50,"CONSOLIDATED INVOICE - HOTELS, CONFERENCE & MEETINGS - 160612 to 300612",TA1 2PF,Programme
Food Standards Agency,Food Standards Agency,18/07/2012,Subsistence UK,Area 5 South West England - Cluster 53,Booking Services International Ltd,224464321,140.00,"CONSOLIDATED INVOICE - HOTELS, CONFERENCE & MEETINGS - 160612 to 300612",TA1 2PF,Programme
Food Standards Agency,Food Standards Agency,18/07/2012,Subsistence UK,Area 5 South West England - Cluster 57,Booking Services International Ltd,224464321,159.00,"CONSOLIDATED INVOICE - HOTELS, CONFERENCE & MEETINGS - 160612 to 300612",TA1 2PF,Programme
Food Standards Agency,Food Standards Agency,18/07/2012,Subsistence UK,Area 6 South East England - Cluster 62,Booking Services International Ltd,224464321,70.00,"CONSOLIDATED INVOICE - HOTELS, CONFERENCE & MEETINGS - 160612 to 300612",TA1 2PF,Programme
Food Standards Agency,Food Standards Agency,18/07/2012,Subsistence UK,Area 6 South East England - Cluster 63,Booking Services International Ltd,224464321,72.00,"CONSOLIDATED INVOICE - HOTELS, CONFERENCE & MEETINGS - 160612 to 300612",TA1 2PF,Programme
Food Standards Agency,Food Standards Agency,18/07/2012,Subsistence UK,Area 6 South East England - Cluster 64,Booking Services International Ltd,224464321,348.00,"CONSOLIDATED INVOICE - HOTELS, CONFERENCE & MEETINGS - 160612 to 300612",TA1 2PF,Programme
Food Standards Agency,Food Standards Agency,18/07/2012,Subsistence UK,Area 6 South East England - Cluster 65,Booking Services International Ltd,224464321,75.00,"CONSOLIDATED INVOICE - HOTELS, CONFERENCE & MEETINGS - 160612 to 300612",TA1 2PF,Programme
Food Standards Agency,Food Standards Agency,18/07/2012,Subsistence UK,Area 6 South East England - Cluster 66,Booking Services International Ltd,224464321,90.00,"CONSOLIDATED INVOICE - HOTELS, CONFERENCE & MEETINGS - 160612 to 300612",TA1 2PF,Programme
Food Standards Agency,Food Standards Agency,18/07/2012,Subsistence UK,Chief Executive & Private Office,Booking Services International Ltd,224464321,"3,354.00","CONSOLIDATED INVOICE - HOTELS, CONFERENCE & MEETINGS - 160612 to 300612",TA1 2PF,Admin
Food Standards Agency,Food Standards Agency,18/07/2012,Subsistence UK,Chair & Deputy Chair,Booking Services International Ltd,224464321,330.82,"CONSOLIDATED INVOICE - HOTELS, CONFERENCE & MEETINGS - 160612 to 300612",TA1 2PF,Admin
Food Standards Agency,Food Standards Agency,18/07/2012,Subsistence UK,FSA Board,Booking Services International Ltd,224464321,"4,701.60","CONSOLIDATED INVOICE - HOTELS, CONFERENCE & MEETINGS - 160612 to 300612",TA1 2PF,Admin
Food Standards Agency,Food Standards Agency,18/07/2012,Subsistence UK,Legal Branch A,Booking Services International Ltd,224464321,65.00,"CONSOLIDATED INVOICE - HOTELS, CONFERENCE & MEETINGS - 160612 to 300612",TA1 2PF,Admin
Food Standards Agency,Food Standards Agency,18/07/2012,Subsistence UK,Investigations,Booking Services International Ltd,224464321,289.00,"CONSOLIDATED INVOICE - HOTELS, CONFERENCE & MEETINGS - 160612 to 300612",TA1 2PF,Admin
Food Standards Agency,Food Standards Agency,18/07/2012,Subsistence UK,Chief Scientist,Booking Services International Ltd,224464321,129.00,"CONSOLIDATED INVOICE - HOTELS, CONFERENCE & MEETINGS - 160612 to 300612",TA1 2PF,Admin
Food Standards Agency,Food Standards Agency,18/07/2012,Subsistence UK,Comms Directors Office,Booking Services International Ltd,224464321,445.20,"CONSOLIDATED INVOICE - HOTELS, CONFERENCE & MEETINGS - 160612 to 300612",TA1 2PF,Admin
Food Standards Agency,Food Standards Agency,18/07/2012,Subsistence UK,Approvals & Veterinary Advice,Booking Services International Ltd,224464321,858.00,"CONSOLIDATED INVOICE - HOTELS, CONFERENCE & MEETINGS - 160612 to 300612",TA1 2PF,Programme
Food Standards Agency,Food Standards Agency,18/07/2012,Subsistence UK,LAALD HoD & Support,Booking Services International Ltd,224464321,"1,576.00","CONSOLIDATED INVOICE - HOTELS, CONFERENCE & MEETINGS - 160612 to 300612",TA1 2PF,Admin
Food Standards Agency,Food Standards Agency,18/07/2012,Subsistence UK,Delivery,Booking Services International Ltd,224464321,"3,477.20","CONSOLIDATED INVOICE - HOTELS, CONFERENCE & MEETINGS - 160612 to 300612",TA1 2PF,Admin
Food Standards Agency,Food Standards Agency,18/07/2012,Subsistence UK,Operational Delivery,Booking Services International Ltd,224464321,"3,348.12","CONSOLIDATED INVOICE - HOTELS, CONFERENCE & MEETINGS - 160612 to 300612",TA1 2PF,Programme
Food Standards Agency,Food Standards Agency,18/07/2012,Subsistence UK,Wine Standards,Booking Services International Ltd,224464321,160.00,"CONSOLIDATED INVOICE - HOTELS, CONFERENCE & MEETINGS - 160612 to 300612",TA1 2PF,Programme
Food Standards Agency,Food Standards Agency,18/07/2012,Subsistence UK,Central Operations Hub,Booking Services International Ltd,224464321,500.00,"CONSOLIDATED INVOICE - HOTELS, CONFERENCE & MEETINGS - 160612 to 300612",TA1 2PF,Programme
Food Standards Agency,Food Standards Agency,18/07/2012,Subsistence UK,Animal Feed Branch,Booking Services International Ltd,224464321,102.68,"CONSOLIDATED INVOICE - HOTELS, CONFERENCE & MEETINGS - 160612 to 300612",TA1 2PF,Admin
Food Standards Agency,Food Standards Agency,18/07/2012,Subsistence UK,Food Policy Strategy HoD,Booking Services International Ltd,224464321,895.20,"CONSOLIDATED INVOICE - HOTELS, CONFERENCE & MEETINGS - 160612 to 300612",TA1 2PF,Admin
Food Standards Agency,Food Standards Agency,18/07/2012,Subsistence UK,Planning and Performance,Booking Services International Ltd,224464321,588.00,"CONSOLIDATED INVOICE - HOTELS, CONFERENCE & MEETINGS - 160612 to 300612",TA1 2PF,Admin
Food Standards Agency,Food Standards Agency,18/07/2012,Subsistence UK,Finance Director & Branch,Booking Services International Ltd,224464321,147.60,"CONSOLIDATED INVOICE - HOTELS, CONFERENCE & MEETINGS - 160612 to 300612",TA1 2PF,Admin
Food Standards Agency,Food Standards Agency,18/07/2012,Subsistence UK,HR,Booking Services International Ltd,224464321,914.30,"CONSOLIDATED INVOICE - HOTELS, CONFERENCE & MEETINGS - 160612 to 300612",TA1 2PF,Admin
Food Standards Agency,Food Standards Agency,18/07/2012,Subsistence UK,Procurement,Booking Services International Ltd,224464321,"3,260.00","CONSOLIDATED INVOICE - HOTELS, CONFERENCE & MEETINGS - 160612 to 300612",TA1 2PF,Admin
Food Standards Agency,Food Standards Agency,18/07/2012,Subsistence UK,Internal Audit,Booking Services International Ltd,224464321,677.90,"CONSOLIDATED INVOICE - HOTELS, CONFERENCE & MEETINGS - 160612 to 300612",TA1 2PF,Admin
Food Standards Agency,Food Standards Agency,18/07/2012,Conference and meeting facilities including accommodation,Area 1 Scotland - Cluster 12,Booking Services International Ltd,224464321,75.00,"CONSOLIDATED INVOICE - HOTELS, CONFERENCE & MEETINGS - 160612 to 300612",TA1 2PF,Programme
Food Standards Agency,Food Standards Agency,18/07/2012,Conference and meeting facilities including accommodation,Area 1 Scotland - Cluster 15,Booking Services International Ltd,224464321,79.50,"CONSOLIDATED INVOICE - HOTELS, CONFERENCE & MEETINGS - 160612 to 300612",TA1 2PF,Programme
Food Standards Agency,Food Standards Agency,18/07/2012,Conference and meeting facilities including accommodation,FSA Board,Booking Services International Ltd,224464321,300.00,"CONSOLIDATED INVOICE - HOTELS, CONFERENCE & MEETINGS - 160612 to 300612",TA1 2PF,Admin
Food Standards Agency,Food Standards Agency,18/07/2012,Conference and meeting facilities including accommodation,Delivery,Booking Services International Ltd,224464321,"1,080.00","CONSOLIDATED INVOICE - HOTELS, CONFERENCE & MEETINGS - 160612 to 300612",TA1 2PF,Admin
Food Standards Agency,Food Standards Agency,20/07/2012,Office machinery: hire,IT Service Delivery,The Danwood Group Ltd,3158688,"26,410.00",PO 407959 QUARTERLY RENTAL CHARGE 22/8/12-21/11/12,LN6 3DG,Admin
Food Standards Agency,Food Standards Agency,20/07/2012,Programme Evidence & Research Expenditure,Delivery,Cornwall Council,98106333,"38,605.80",PO 408429 SWERCOTS NATIONAL CO-ORDINATED RISK BASED FOOD,TR1 3AY,Programme
Food Standards Agency,Food Standards Agency,24/07/2012,Utilities,Security & Estates,Department of Energy & Climate Change,CRCFP8576380,"25,908.00",PO 409107 CRC PHASE 1 ALLOWANCE PAYMENT 2011/12,SW1A 2AW,Admin
Food Standards Agency,Food Standards Agency,24/07/2012,ASD support services,Finance Director & Branch,DEFRA,1000016746,"88,750.00",PO 408925/409112 DEFRA040-SSD QUARTERLY CHARGE APR 2012 TO JUNE 2012,YO1 7PX,Admin
Food Standards Agency,Food Standards Agency,24/07/2012,ASD support services,Finance Director & Branch,DEFRA,1000016746,"21,000.00",PO 408925/409112 DEFRA040-SSD QUARTERLY CHARGE APR 2012 TO JUNE 2012,YO1 7PX,Admin
Food Standards Agency,Food Standards Agency,24/07/2012,ASD support services,Finance Director & Branch,DEFRA,1000016746,"17,750.00",PO 408925/409112 DEFRA040-SSD QUARTERLY CHARGE APR 2012 TO JUNE 2012,YO1 7PX,Admin
Food Standards Agency,Food Standards Agency,24/07/2012,ASD support services,Finance Director & Branch,DEFRA,1000016746,"4,200.00",PO 408925/409112 DEFRA040-SSD QUARTERLY CHARGE APR 2012 TO JUNE 2012,YO1 7PX,Admin
Food Standards Agency,Food Standards Agency,24/07/2012,Project Programme expenditure,Delivery,C E F A S,8002119,"26,584.00",PO 408718 C3019 QTR 1 INVOICE 1/4/12 TO 30/6/12,NR33 0HT,Programme
Food Standards Agency,Food Standards Agency,24/07/2012,Project Programme expenditure,Delivery,London Borough Of Hackney,3422364,"41,880.00",PO 407833 FIRST 50% PAYMENT OF GRANT FUNDING,E8 1FB,Programme
Food Standards Agency,Food Standards Agency,24/07/2012,Programme Evidence & Research Expenditure,Delivery,"Lancashire County Council, Trading Standards",SBA14,"29,920.00",FOOD AND FEED INSPECTIONS 1/4/11 TO 30/9/11,PR1 8XB,Programme
Food Standards Agency,Food Standards Agency,24/07/2012,Programme Evidence & Research Expenditure,Delivery,"Lancashire County Council, Trading Standards",SBA14,"29,590.00",FOOD AND FEED INSPECTIONS 1/4/11 TO 30/9/11,PR1 8XB,Programme
Food Standards Agency,Food Standards Agency,24/07/2012,Programme Evidence & Research Expenditure,Delivery,North Yorkshire County Council,SBA20,"20,460.00",FOOD AND FEED INSPECTIONS 1/4/11 TO 30/9/11,DL6 2XQ,Programme
Food Standards Agency,Food Standards Agency,24/07/2012,Programme Evidence & Research Expenditure,Delivery,North Yorkshire County Council,SBA20,"9,295.00",FOOD AND FEED INSPECTIONS 1/4/11 TO 30/9/11,DL6 2XQ,Programme
Food Standards Agency,Food Standards Agency,24/07/2012,Programme Evidence & Research Expenditure,Delivery,North Yorkshire County Council,SBA46,"15,235.00",FOOD AND FEED SAMPLING 1/10/11 TO 31/3/12,DL6 2XQ,Programme
Food Standards Agency,Food Standards Agency,24/07/2012,Programme Evidence & Research Expenditure,Delivery,North Yorkshire County Council,SBA46,"7,425.00",FOOD AND FEED SAMPLING 1/10/11 TO 31/3/12,DL6 2XQ,Programme
Food Standards Agency,Food Standards Agency,24/07/2012,Programme Evidence & Research Expenditure,Microbiological Food Safety Branch,Agri-Food & Biosciences Institute,INV05218,"34,284.00",PO 409040 F5241042 SURVEY OF LISTERIA IN PRE-PACKED MEATS,BT9 5PX,Programme
Food Standards Agency,Food Standards Agency,24/07/2012,Programme Evidence & Research Expenditure,Microbiological Food Safety Branch,Agri-Food & Biosciences Institute,INV05218,"6,856.80",PO 409040 F5241042 SURVEY OF LISTERIA IN PRE-PACKED MEATS,BT9 5PX,Programme
Food Standards Agency,Food Standards Agency,26/07/2012,IT Development projects,FSA Board,The Glasgows Group,14291,"37,000.00",PO 407697 FSA PUBLIC OPEN BOARD MEETING 11 JULY 2012 DOUGLAS HOTEL ABERDEEN,PR2 2UW,Admin
Food Standards Agency,Food Standards Agency,26/07/2012,IT Development projects,FSA Board,The Glasgows Group,14291,"7,400.00",PO 407697 FSA PUBLIC OPEN BOARD MEETING 11 JULY 2012 DOUGLAS HOTEL ABERDEEN,PR2 2UW,Admin
Food Standards Agency,Food Standards Agency,26/07/2012,IT Development projects,FSA Board,The Glasgows Group,14291,"1,290.93",PO 407697 FSA PUBLIC OPEN BOARD MEETING 11 JULY 2012 DOUGLAS HOTEL ABERDEEN,PR2 2UW,Admin
Food Standards Agency,Food Standards Agency,26/07/2012,IT Development projects,FSA Board,The Glasgows Group,14291,258.19,PO 407697 FSA PUBLIC OPEN BOARD MEETING 11 JULY 2012 DOUGLAS HOTEL ABERDEEN,PR2 2UW,Admin
Food Standards Agency,Food Standards Agency,30/07/2012,Rates/contrib in lieu of rates,Security & Estates,London Borough Of Camden,68351658AUG12,"152,004.00",PO 407405 NON DOMESTIC RATES FOR PERIOD 1/8/12,WC1H 8NH,Admin
Food Standards Agency,Food Standards Agency,30/07/2012,Travel UK ,Area 1 Scotland - Cluster 11,Capita Business Travel Ltd,LI430540,356.71,CONSOLIDATED INVOICE 1-15 JUL 12 TRAVEL CHARGES,DE21 6BF,Programme
Food Standards Agency,Food Standards Agency,30/07/2012,Travel UK ,Area 1 Scotland - Cluster 13,Capita Business Travel Ltd,LI430540,315.80,CONSOLIDATED INVOICE 1-15 JUL 12 TRAVEL CHARGES,DE21 6BF,Programme
Food Standards Agency,Food Standards Agency,30/07/2012,Travel UK ,Area 1 Scotland - Cluster 15,Capita Business Travel Ltd,LI430540,198.60,CONSOLIDATED INVOICE 1-15 JUL 12 TRAVEL CHARGES,DE21 6BF,Programme
Food Standards Agency,Food Standards Agency,30/07/2012,Travel UK ,Area 2 Wales - Cluster 21,Capita Business Travel Ltd,LI430540,33.70,CONSOLIDATED INVOICE 1-15 JUL 12 TRAVEL CHARGES,DE21 6BF,Programme
Food Standards Agency,Food Standards Agency,30/07/2012,Travel UK ,Area 3 North West England - Cluster 33,Capita Business Travel Ltd,LI430540,101.10,CONSOLIDATED INVOICE 1-15 JUL 12 TRAVEL CHARGES,DE21 6BF,Programme
Food Standards Agency,Food Standards Agency,30/07/2012,Travel UK ,Area 4 North East England - Cluster 41,Capita Business Travel Ltd,LI430540,98.80,CONSOLIDATED INVOICE 1-15 JUL 12 TRAVEL CHARGES,DE21 6BF,Programme
Food Standards Agency,Food Standards Agency,30/07/2012,Travel UK ,Area 4 North East England - Cluster 46,Capita Business Travel Ltd,LI430540,42.30,CONSOLIDATED INVOICE 1-15 JUL 12 TRAVEL CHARGES,DE21 6BF,Programme
Food Standards Agency,Food Standards Agency,30/07/2012,Travel UK ,Area 5 South West England - Cluster 56,Capita Business Travel Ltd,LI430540,345.20,CONSOLIDATED INVOICE 1-15 JUL 12 TRAVEL CHARGES,DE21 6BF,Programme
Food Standards Agency,Food Standards Agency,30/07/2012,Travel UK ,Area 5 South West England - Cluster 57,Capita Business Travel Ltd,LI430540,781.50,CONSOLIDATED INVOICE 1-15 JUL 12 TRAVEL CHARGES,DE21 6BF,Programme
Food Standards Agency,Food Standards Agency,30/07/2012,Travel UK ,Area 6 South East England - Cluster 61,Capita Business Travel Ltd,LI430540,51.30,CONSOLIDATED INVOICE 1-15 JUL 12 TRAVEL CHARGES,DE21 6BF,Programme
Food Standards Agency,Food Standards Agency,30/07/2012,Travel UK ,Area 6 South East England - Cluster 63,Capita Business Travel Ltd,LI430540,-36.00,CONSOLIDATED INVOICE 1-15 JUL 12 TRAVEL CHARGES,DE21 6BF,Programme
Food Standards Agency,Food Standards Agency,30/07/2012,Travel UK ,Area 6 South East England - Cluster 64,Capita Business Travel Ltd,LI430540,-54.30,CONSOLIDATED INVOICE 1-15 JUL 12 TRAVEL CHARGES,DE21 6BF,Programme
Food Standards Agency,Food Standards Agency,30/07/2012,Travel UK ,Area 6 South East England - Cluster 66,Capita Business Travel Ltd,LI430540,110.20,CONSOLIDATED INVOICE 1-15 JUL 12 TRAVEL CHARGES,DE21 6BF,Programme
Food Standards Agency,Food Standards Agency,30/07/2012,Travel UK ,Chief Executive & Private Office,Capita Business Travel Ltd,LI430540,"1,002.24",CONSOLIDATED INVOICE 1-15 JUL 12 TRAVEL CHARGES,DE21 6BF,Admin
Food Standards Agency,Food Standards Agency,30/07/2012,Travel UK ,Chair & Deputy Chair,Capita Business Travel Ltd,LI430540,157.75,CONSOLIDATED INVOICE 1-15 JUL 12 TRAVEL CHARGES,DE21 6BF,Admin
Food Standards Agency,Food Standards Agency,30/07/2012,Travel UK ,FSA Board,Capita Business Travel Ltd,LI430540,474.55,CONSOLIDATED INVOICE 1-15 JUL 12 TRAVEL CHARGES,DE21 6BF,Admin
Food Standards Agency,Food Standards Agency,30/07/2012,Travel UK ,Legal Branch A,Capita Business Travel Ltd,LI430540,140.60,CONSOLIDATED INVOICE 1-15 JUL 12 TRAVEL CHARGES,DE21 6BF,Admin
Food Standards Agency,Food Standards Agency,30/07/2012,Travel UK ,Investigations,Capita Business Travel Ltd,LI430540,108.50,CONSOLIDATED INVOICE 1-15 JUL 12 TRAVEL CHARGES,DE21 6BF,Admin
Food Standards Agency,Food Standards Agency,30/07/2012,Travel UK ,Chief Scientist,Capita Business Travel Ltd,LI430540,21.15,CONSOLIDATED INVOICE 1-15 JUL 12 TRAVEL CHARGES,DE21 6BF,Admin
Food Standards Agency,Food Standards Agency,30/07/2012,Travel UK ,Analysis & Research Branch,Capita Business Travel Ltd,LI430540,512.66,CONSOLIDATED INVOICE 1-15 JUL 12 TRAVEL CHARGES,DE21 6BF,Admin
Food Standards Agency,Food Standards Agency,30/07/2012,Travel UK ,Comms Directors Office,Capita Business Travel Ltd,LI430540,948.70,CONSOLIDATED INVOICE 1-15 JUL 12 TRAVEL CHARGES,DE21 6BF,Admin
Food Standards Agency,Food Standards Agency,30/07/2012,Travel UK ,FSA Operations Director & Support,Capita Business Travel Ltd,LI430540,196.10,CONSOLIDATED INVOICE 1-15 JUL 12 TRAVEL CHARGES,DE21 6BF,Programme
Food Standards Agency,Food Standards Agency,30/07/2012,Travel UK ,Approvals & Veterinary Advice,Capita Business Travel Ltd,LI430540,"1,296.20",CONSOLIDATED INVOICE 1-15 JUL 12 TRAVEL CHARGES,DE21 6BF,Programme
Food Standards Agency,Food Standards Agency,30/07/2012,Travel UK ,LAALD HoD & Support,Capita Business Travel Ltd,LI430540,"2,231.30",CONSOLIDATED INVOICE 1-15 JUL 12 TRAVEL CHARGES,DE21 6BF,Admin
Food Standards Agency,Food Standards Agency,30/07/2012,Travel UK ,Delivery,Capita Business Travel Ltd,LI430540,"2,707.50",CONSOLIDATED INVOICE 1-15 JUL 12 TRAVEL CHARGES,DE21 6BF,Admin
Food Standards Agency,Food Standards Agency,30/07/2012,Travel UK ,Enforcement Policy,Capita Business Travel Ltd,LI430540,211.60,CONSOLIDATED INVOICE 1-15 JUL 12 TRAVEL CHARGES,DE21 6BF,Admin
Food Standards Agency,Food Standards Agency,30/07/2012,Travel UK ,Official Controls & Enforcement Strategy,Capita Business Travel Ltd,LI430540,152.90,CONSOLIDATED INVOICE 1-15 JUL 12 TRAVEL CHARGES,DE21 6BF,Admin
Food Standards Agency,Food Standards Agency,30/07/2012,Travel UK ,Operational Delivery,Capita Business Travel Ltd,LI430540,"3,048.11",CONSOLIDATED INVOICE 1-15 JUL 12 TRAVEL CHARGES,DE21 6BF,Programme
Food Standards Agency,Food Standards Agency,30/07/2012,Travel UK ,Wine Standards,Capita Business Travel Ltd,LI430540,-59.00,CONSOLIDATED INVOICE 1-15 JUL 12 TRAVEL CHARGES,DE21 6BF,Programme
Food Standards Agency,Food Standards Agency,30/07/2012,Travel UK ,Central Operations Hub,Capita Business Travel Ltd,LI430540,924.01,CONSOLIDATED INVOICE 1-15 JUL 12 TRAVEL CHARGES,DE21 6BF,Programme
Food Standards Agency,Food Standards Agency,30/07/2012,Travel UK ,Chemical Risk Assessment Unit,Capita Business Travel Ltd,LI430540,358.70,CONSOLIDATED INVOICE 1-15 JUL 12 TRAVEL CHARGES,DE21 6BF,Admin
Food Standards Agency,Food Standards Agency,30/07/2012,Travel UK ,Contaminants Policy & Strategy Unit,Capita Business Travel Ltd,LI430540,36.10,CONSOLIDATED INVOICE 1-15 JUL 12 TRAVEL CHARGES,DE21 6BF,Admin
Food Standards Agency,Food Standards Agency,30/07/2012,Travel UK ,Hygiene & Microbiology Division HoD,Capita Business Travel Ltd,LI430540,321.24,CONSOLIDATED INVOICE 1-15 JUL 12 TRAVEL CHARGES,DE21 6BF,Admin
Food Standards Agency,Food Standards Agency,30/07/2012,Travel UK ,Allergens,Capita Business Travel Ltd,LI430540,15.80,CONSOLIDATED INVOICE 1-15 JUL 12 TRAVEL CHARGES,DE21 6BF,Admin
Food Standards Agency,Food Standards Agency,30/07/2012,Travel UK ,Food Policy Strategy HoD,Capita Business Travel Ltd,LI430540,860.64,CONSOLIDATED INVOICE 1-15 JUL 12 TRAVEL CHARGES,DE21 6BF,Admin
Food Standards Agency,Food Standards Agency,30/07/2012,Travel UK ,Planning and Performance,Capita Business Travel Ltd,LI430540,"1,197.60",CONSOLIDATED INVOICE 1-15 JUL 12 TRAVEL CHARGES,DE21 6BF,Admin
Food Standards Agency,Food Standards Agency,30/07/2012,Travel UK ,Food Policy Private Office,Capita Business Travel Ltd,LI430540,484.05,CONSOLIDATED INVOICE 1-15 JUL 12 TRAVEL CHARGES,DE21 6BF,Admin
Food Standards Agency,Food Standards Agency,30/07/2012,Travel UK ,Finance Director & Branch,Capita Business Travel Ltd,LI430540,"1,669.25",CONSOLIDATED INVOICE 1-15 JUL 12 TRAVEL CHARGES,DE21 6BF,Admin
Food Standards Agency,Food Standards Agency,30/07/2012,Travel UK ,HR,Capita Business Travel Ltd,LI430540,"4,174.30",CONSOLIDATED INVOICE 1-15 JUL 12 TRAVEL CHARGES,DE21 6BF,Admin
Food Standards Agency,Food Standards Agency,30/07/2012,Travel UK ,Procurement,Capita Business Travel Ltd,LI430540,-23.40,CONSOLIDATED INVOICE 1-15 JUL 12 TRAVEL CHARGES,DE21 6BF,Admin
Food Standards Agency,Food Standards Agency,30/07/2012,Travel UK ,IT HoD,Capita Business Travel Ltd,LI430540,"1,248.40",CONSOLIDATED INVOICE 1-15 JUL 12 TRAVEL CHARGES,DE21 6BF,Admin
Food Standards Agency,Food Standards Agency,30/07/2012,Travel UK ,Security & Estates,Capita Business Travel Ltd,LI430540,277.40,CONSOLIDATED INVOICE 1-15 JUL 12 TRAVEL CHARGES,DE21 6BF,Admin
Food Standards Agency,Food Standards Agency,30/07/2012,Travel UK ,Internal Audit,Capita Business Travel Ltd,LI430540,121.90,CONSOLIDATED INVOICE 1-15 JUL 12 TRAVEL CHARGES,DE21 6BF,Admin
Food Standards Agency,Food Standards Agency,30/07/2012,International Travel,Contaminants Policy & Strategy Unit,Capita Business Travel Ltd,LI430540,263.75,CONSOLIDATED INVOICE 1-15 JUL 12 TRAVEL CHARGES,DE21 6BF,Admin
Food Standards Agency,Food Standards Agency,30/07/2012,International Travel,Novel Food Unit,Capita Business Travel Ltd,LI430540,178.75,CONSOLIDATED INVOICE 1-15 JUL 12 TRAVEL CHARGES,DE21 6BF,Admin
Food Standards Agency,Food Standards Agency,30/07/2012,International Travel,Microbiological Food Safety Branch,Capita Business Travel Ltd,LI430540,367.69,CONSOLIDATED INVOICE 1-15 JUL 12 TRAVEL CHARGES,DE21 6BF,Admin
Food Standards Agency,Food Standards Agency,30/07/2012,International Travel,Food Production Branch,Capita Business Travel Ltd,LI430540,479.06,CONSOLIDATED INVOICE 1-15 JUL 12 TRAVEL CHARGES,DE21 6BF,Admin
Food Standards Agency,Food Standards Agency,30/07/2012,International Travel,Analysis & Research Branch,Capita Business Travel Ltd,LI430540,658.29,CONSOLIDATED INVOICE 1-15 JUL 12 TRAVEL CHARGES,DE21 6BF,Admin
Food Standards Agency,Food Standards Agency,30/07/2012,International Travel,Contaminants Policy & Strategy Unit,Capita Business Travel Ltd,LI430540,"1,898.87",CONSOLIDATED INVOICE 1-15 JUL 12 TRAVEL CHARGES,DE21 6BF,Admin
Food Standards Agency,Food Standards Agency,30/07/2012,Subsistence UK,Procurement,Capita Business Travel Ltd,LI430540,"6,811.50",CONSOLIDATED INVOICE 1-15 JUL 12 TRAVEL CHARGES,DE21 6BF,Admin
Food Standards Agency,Food Standards Agency,30/07/2012,Car hire expenses (short term),Incidents & Food Fraud,Capita Business Travel Ltd,LI430540,262.26,CONSOLIDATED INVOICE 1-15 JUL 12 TRAVEL CHARGES,DE21 6BF,Admin
Food Standards Agency,Food Standards Agency,30/07/2012,Car hire expenses (short term),Finance Director & Branch,Capita Business Travel Ltd,LI430540,113.95,CONSOLIDATED INVOICE 1-15 JUL 12 TRAVEL CHARGES,DE21 6BF,Admin
Food Standards Agency,Food Standards Agency,30/07/2012,Car hire expenses (short term),HR,Capita Business Travel Ltd,LI430540,48.37,CONSOLIDATED INVOICE 1-15 JUL 12 TRAVEL CHARGES,DE21 6BF,Admin
"Date Run: 08-AUG-12 03.28.26 PM --- Company Code : '17' , Payment Start Date : '01-JUL-2012' , Payment End Date : '31-JUL-2012'",,,,,,,,,,
